fUSD/lending_fUSD_20250628
["ID","MTS","AMOUNT","RATE_DAILY","PERIOD"]
[368326333,1751121038451,-150.0,0.00035402,2]
[368326334,1751121038461,-644.24684577,0.00035416,2]
[368326335,1751121038470,-644.24684565,0.00035441,2]
[368326336,1751121038480,-644.24684565,0.00035467,2]
[368326337,1751121038492,-644.24684565,0.00035492,2]
[368326338,1751121038502,-155.96585917,0.000355,8]
[368326339,1751121038513,-2600.0,0.000355,12]
[368326340,1751121038523,-446.56281749,0.00035506,7]
[368326341,1751121038532,-500.0,0.00035506,7]
[368326342,1751121038543,-500.0,0.00035506,7]
[368326343,1751121038552,-317.68359563,0.00035506,7]
[368326344,1751121038562,-3091.95081886,0.00035506,2]
[368326345,1751121038571,-168.49547571,0.00035506,2]
[368326346,1751121038581,-5427381.57516162,0.00035507,7]
[368326347,1751121038593,-11488.4492003,0.00035507,7]
[368326349,1751121038611,-607.95416847,0.00035507,7]
[368326350,1751121038625,-1653.73651854,0.00035507,7]
[368326351,1751121038639,-54699.999,0.00035507,7]
[368326352,1751121038652,-77100.0,0.00035507,7]
[368326354,1751121038672,-636.55455422,0.00035507,7]
[368326522,1751121040357,-843.00005171,0.00035507,7]
[368326525,1751121040369,-39046.8799984,0.00035507,7]
[368326537,1751121040474,-293.07159984,0.00035507,7]
[368326545,1751121040536,-438.05806838,0.00035507,7]
[368326853,1751121043548,-12688.37804794,0.00035507,7]
[368327150,1751121046434,-31785.49648308,0.00035507,7]
[368327795,1751121376243,156.53,0.00013699,2]
[368327796,1751121685764,595.33,0.000267,10]
[368327799,1751121905283,10000.0,0.000267,10]
[368327800,1751121920271,3358.086,0.000267,10]
[368327801,1751122019279,-1762.61199846,0.0002,2]
[368327802,1751122019300,-33.35933147,0.0002,2]
[368327813,1751122231443,-250.0,0.000215,2]
[368327814,1751122231453,-300.0,0.00022,2]
[368327815,1751122231462,-250.0,0.00022,2]
[368327816,1751122231472,-208.0,0.00022824,2]
[368327817,1751122231481,-3.01,0.000231,2]
[368327818,1751122231505,-246.99,0.000231,2]
[368327819,1751122231516,-208.0,0.00026542,7]
[368327820,1751122231526,-156.53,0.00027397,2]
[368327821,1751122231535,-208.0,0.00030259,13]
[368327822,1751122231545,-316.0,0.00030632,7]
[368327823,1751122231555,-150.0,0.00031336,2]
[368327824,1751122231564,-316.0,0.00031477,2]
[368327825,1751122231574,-296.0,0.00032129,7]
[368327826,1751122231583,-720.0,0.00032229,3]
[368327827,1751122231593,-150.0,0.00032355,2]
[368327828,1751122231603,-150.0,0.00032466,2]
[368327829,1751122231612,-1600.0,0.00032714,3]
[368327830,1751122231622,-535.02,0.00032715,2]
[368327831,1751122231632,-600.0,0.00032721,3]
[368327832,1751122231641,-5763.3,0.00032723,2]
[368327833,1751122231651,-364.546,0.00032823,33]
[368327834,1751122231660,-213.09621696,0.000329,27]
[368327835,1751122231671,-1000.0,0.00032939,2]
[368327836,1751122231682,-5206.26,0.00033,6]
[368327837,1751122231693,-221.17,0.00033223,2]
[368327838,1751122231703,-221.17,0.00033232,2]
[368327840,1751122231712,-221.17,0.00033241,2]
[368327841,1751122231723,-221.17,0.00033249,2]
[368327843,1751122231732,-221.17,0.00033258,2]
[368327844,1751122231742,-221.17,0.00033267,2]
[368327845,1751122231753,-221.17,0.00033276,2]
[368327846,1751122231763,-221.17,0.00033284,2]
[368327847,1751122231772,-150.0,0.0003348,2]
[368327848,1751122231782,-213.09621689,0.00033718,29]
[368327849,1751122231791,-150.0,0.00033764,2]
[368327851,1751122231801,-150.0,0.00033877,2]
[368327852,1751122231815,-208.0,0.00033977,19]
[368327854,1751122231825,-150.0,0.00034216,2]
[368327855,1751122231835,-1000.0,0.000343,7]
[368327856,1751122231845,-150.0,0.00034314,2]
[368327857,1751122231854,-150.0,0.00034341,2]
[368327858,1751122231864,-222.14,0.0003448,2]
[368327859,1751122231874,-200.0,0.00034504,2]
[368327861,1751122231883,-200.0,0.00034504,2]
[368327864,1751122231894,-213.09621689,0.00034536,31]
[368327866,1751122231903,-204.33,0.00034548,2]
[368327869,1751122231913,-200.0,0.00034566,7]
[368327871,1751122231923,-150.0,0.0003473,2]
[368327872,1751122231932,-1050.30706,0.00034765,16]
[368327873,1751122231942,-150.0,0.00034845,2]
[368327874,1751122231952,-150.0,0.00034891,2]
[368327875,1751122231962,-150.0,0.0003495,2]
[368327876,1751122231972,-150.0,0.00034995,2]
[368327877,1751122231984,-55611.18,0.00035,7]
[368327878,1751122231994,-150.0,0.0003501,7]
[368327879,1751122232004,-150.0,0.0003504,2]
[368327880,1751122232014,-150.0,0.00035137,2]
[368327881,1751122232024,-1440.90962,0.0003515,2]
[368327882,1751122232034,-2296.08698871,0.00035196,2]
[368327883,1751122232044,-209.6893,0.000352,2]
[368327884,1751122232054,-150.0,0.0003522,2]
[368327885,1751122232064,-296.0,0.00035244,2]
[368327886,1751122232074,-972.0,0.00035257,2]
[368327887,1751122232083,-500.0,0.00035257,2]
[368327888,1751122232094,-150.0,0.00035257,2]
[368327889,1751122232104,-500.0,0.00035257,2]
[368327890,1751122232114,-150.0,0.00035257,2]
[368327891,1751122232124,-150.0,0.00035257,2]
[368327892,1751122232133,-150.0,0.00035257,2]
[368327893,1751122232143,-200.0,0.00035257,2]
[368327894,1751122232153,-150.0,0.00035257,2]
[368327895,1751122232163,-11419.27265535,0.00035281,7]
[368327896,1751122232175,-846.50925865,0.00035281,7]
[368327897,1751122232219,-221.17,0.00033293,2]
[368327898,1751122232228,-476.12720386,0.00035281,7]
[368327899,1751122232240,-283.75826793,0.00035281,7]
[368327900,1751122232260,-1355049.31723657,0.00035281,7]
[368327903,1751122237344,-221.17,0.00033302,2]
[368327904,1751122237354,-221.17,0.0003331,2]
[368327905,1751122237363,-221.17,0.00033319,2]
[368327906,1751122237372,-54.47991817,0.00033328,2]
[368327907,1751122237385,-166.69008183,0.00033328,2]
[368327908,1751122237394,-221.17,0.00033337,2]
[368327909,1751122237403,-221.17,0.00033345,2]
[368327910,1751122237412,-221.17,0.00033354,2]
[368327911,1751122237421,-221.17,0.00033363,2]
[368327912,1751122237430,-221.17,0.00033372,2]
[368327913,1751122237443,-221.17,0.0003338,2]
[368327914,1751122237452,-221.17,0.00033389,2]
[368327915,1751122237462,-476.79548519,0.0003528,7]
[368327916,1751122237471,-112.8210245,0.0003528,7]
[368327917,1751122237497,-387.1789755,0.0003528,7]
[368327918,1751122237507,-500.0,0.0003528,7]
[368327919,1751122237516,-500.0,0.0003528,7]
[368327920,1751122237525,-161.27956602,0.0003528,7]
[368327921,1751122237535,-209.6523207,0.0003528,7]
[368327922,1751122237544,-500.0,0.0003528,7]
[368327923,1751122237553,-500.0,0.0003528,7]
[368327924,1751122237562,-500.0,0.0003528,7]
[368327925,1751122237572,-500.0,0.0003528,7]
[368327926,1751122237582,-251.05753186,0.0003528,2]
[368327927,1751122237591,-446.56281749,0.0003528,7]
[368327928,1751122237600,-500.0,0.0003528,7]
[368327929,1751122237609,-501.22824006,0.0003528,7]
[368327930,1751122237618,-643.41557034,0.0003528,7]
[368327931,1751122237627,-238.15728559,0.0003528,7]
[368327932,1751122237636,-500.0,0.0003528,7]
[368327933,1751122237646,-500.0,0.0003528,7]
[368327934,1751122237656,-5439609.34901124,0.00035281,7]
[368327935,1751122237669,-1022.20977789,0.00035281,7]
[368328437,1751122242608,-7000.04656794,0.00035281,7]
[368328449,1751122242719,-199.55237002,0.00035281,7]
[368328726,1751122245440,-1614.91267414,0.00035281,7]
[368328736,1751122245515,-1547.03375287,0.00035281,7]
[368329219,1751122403973,156.53,0.00013699,2]
[368329221,1751122653340,150.0,0.00018101,2]
[368329223,1751122944130,159.72,0.00026,30]
[368329230,1751123431751,-220.50397781,0.00027755,2]
[368329231,1751123431761,-657.0,0.00027855,5]
[368329232,1751123431775,-500.0,0.00027855,5]
[368329233,1751123431784,-250.0,0.0002786,2]
[368329234,1751123431794,-500.0,0.00027865,5]
[368329235,1751123431804,-250.0,0.0003064,2]
[368329236,1751123431814,-156.53,0.00031311,2]
[368329237,1751123431823,-207.0,0.00031374,2]
[368329238,1751123431833,-186.9,0.00031438,2]
[368329239,1751123431843,-150.0,0.00031574,2]
[368329240,1751123431852,-117.30035776,0.00031623,2]
[368329241,1751123431868,-32.69964224,0.00031623,2]
[368329242,1751123431878,-150.0,0.00031636,2]
[368329243,1751123431887,-150.0,0.00031774,2]
[368329244,1751123431896,-150.0,0.00032058,2]
[368329245,1751123431906,-150.0,0.00032135,2]
[368329246,1751123431916,-150.0,0.00032345,2]
[368329247,1751123431926,-150.0,0.00032414,2]
[368329248,1751123431936,-759.59,0.00032427,2]
[368329249,1751123431945,-150.0,0.00032432,2]
[368329250,1751123431955,-150.0,0.00032558,2]
[368329251,1751123431964,-150.0,0.00032574,2]
[368329252,1751123431974,-47.96224827,0.00032641,2]
[368329253,1751123431985,-109.27775173,0.00032641,2]
[368329254,1751123431995,-1221.57224827,0.00032646,2]
[368329255,1751123432014,-75.06775173,0.00032646,2]
[368329256,1751123432024,-300.0,0.00032653,2]
[368329257,1751123432034,-1600.0,0.00032653,3]
[368329258,1751123432043,-157.24,0.00032653,2]
[368329259,1751123432053,-157.24,0.00032666,2]
[368329260,1751123432063,-200.0,0.0003267,2]
[368329262,1751123432073,-157.24,0.00032678,2]
[368329264,1751123432082,-157.24,0.00032691,2]
[368329266,1751123432092,-250.0,0.00032692,2]
[368329268,1751123432101,-157.24,0.00032703,2]
[368329269,1751123432111,-157.24,0.00032716,2]
[368329270,1751123432121,-157.24,0.00032729,2]
[368329272,1751123432131,-157.24,0.00032741,2]
[368329273,1751123432140,-157.24,0.00032754,2]
[368329274,1751123432151,-157.24,0.00032766,2]
[368329275,1751123432161,-157.24,0.00032779,2]
[368329276,1751123432171,-157.24,0.00032791,2]
[368329277,1751123432180,-157.24,0.00032804,2]
[368329278,1751123432189,-699.0,0.00032877,7]
[368329279,1751123432199,-14315.23,0.00032884,2]
[368329280,1751123432208,-457.92,0.00032885,2]
[368329281,1751123432218,-291.637,0.00032885,34]
[368329282,1751123432227,-208.1525218,0.000329,27]
[368329283,1751123432237,-150.0,0.00033185,2]
[368329284,1751123432247,-150.0,0.00033303,2]
[368329285,1751123432256,-208.15252169,0.00033344,28]
[368329286,1751123432265,-600.0,0.000334,2]
[368329287,1751123432275,-208.15252169,0.00033789,29]
[368329288,1751123432284,-6912.642,0.00033804,2]
[368329289,1751123432293,-200.0,0.00033804,2]
[368329290,1751123432303,-7168.409754,0.00033859,2]
[368329291,1751123432313,-798.87,0.00033874,2]
[368329292,1751123432323,-168.0,0.00033882,7]
[368329293,1751123432332,-6005.44305909,0.00033914,2]
[368329294,1751123432365,-952.79788225,0.00033914,2]
[368329295,1751123432389,-475.39997356,0.00033914,2]
[368329296,1751123432398,-499.58377803,0.00033969,2]
[368329297,1751123432410,-6829.04341185,0.00033969,2]
[368329298,1751123432420,-1000.0,0.0003399,2]
[368329299,1751123432430,-11940.93335266,0.00034014,2]
[368329300,1751123432440,-150.0,0.00034103,2]
[368329301,1751123432449,-150.0,0.00034145,2]
[368329302,1751123432459,-150.0,0.00034173,2]
[368329303,1751123432469,-150.0,0.00034212,2]
[368329304,1751123432479,-208.15252169,0.00034233,30]
[368329305,1751123432489,-168.0,0.00034375,120]
[368329306,1751123432498,-165.21,0.00034378,2]
[368329307,1751123432507,-150.0,0.00034418,2]
[368329308,1751123432517,-150.0,0.00034418,2]
[368329309,1751123432526,-150.0,0.00034424,2]
[368329310,1751123432536,-200.0,0.00034434,7]
[368329311,1751123432546,-150.0,0.00034458,2]
[368329312,1751123432556,-1162.471326,0.00034521,16]
[368329313,1751123432565,-207.0,0.00034555,8]
[368329314,1751123432581,-208.15252169,0.00034678,31]
[368329315,1751123432591,-835.41973025,0.00034695,2]
[368329316,1751123432600,-168.0,0.00034702,2]
[368329317,1751123432609,-156.89063346,0.0003473,2]
[368329318,1751123432619,-2262.75063073,0.000348,2]
[368329319,1751123432629,-193.31,0.0003489,2]
[368329320,1751123432638,-4730.4695,0.0003489,2]
[368329321,1751123432647,-22161.09332727,0.00034891,7]
[368329322,1751123432660,-82267.68515373,0.00034891,7]
[368329323,1751123432679,-1020.64995436,0.00034891,7]
[368329326,1751123437555,-168.49547577,0.0003489,2]
[368329327,1751123437567,-226.98135674,0.00034891,7]
[368329328,1751123437739,-5760579.4003939,0.00034891,7]
[368329329,1751123437751,-6009.875,0.00034891,7]
[368329330,1751123437762,-1334.15885312,0.00034891,7]
[368329331,1751123437778,-641.730114,0.00034891,7]
[368329332,1751123437788,-3221.1,0.00034891,7]
[368329333,1751123437799,-2968.11384959,0.00034891,7]
[368329334,1751123437811,-439.05161663,0.00034891,7]
[368329512,1751123439751,-931.43755918,0.00034891,7]
[368329525,1751123439866,-1602.43089861,0.00034891,7]
[368329527,1751123439878,-568.2071272,0.00034891,7]
[368329529,1751123439890,-12198.91210123,0.00034891,7]
[368329531,1751123439901,-12135.21166109,0.00034891,7]
[368329533,1751123439912,-8749.33338833,0.00034891,7]
[368329536,1751123439923,-1331.00357604,0.00034891,7]
[368329538,1751123439933,-1308.95102022,0.00034891,7]
[368329540,1751123439945,-40206.46213244,0.00034891,7]
[368329571,1751123440207,-17069.29358519,0.00034891,7]
[368329574,1751123440219,-585.50720326,0.00034891,7]
[368329826,1751123442715,-5181.85069826,0.00034891,7]
[368329829,1751123442739,-614.43670269,0.00034891,7]
[368329842,1751123442853,-3082.00547894,0.00034891,7]
[368329844,1751123442866,-963.51822977,0.00034891,7]
[368329856,1751123442963,-362.60536559,0.00034891,7]
[368330135,1751123445668,-1509.95,0.00034891,7]
[368330139,1751123445701,-471.51499525,0.00034891,7]
[368330554,1751123815204,156.53,0.00013699,2]
[368330555,1751124329066,375.14215006,0.000199,2]
[368330556,1751124430626,1128.59436848,0.00016435,2]
[368330561,1751124477493,30000.0,0.00014,2]
[368330568,1751124517264,3949.539999,0.000151,2]
[368330570,1751124524381,217381.78418928,0.000194,2]
[368330571,1751124524407,1600.0,0.000194,2]
[368330578,1751124548290,-300.0,0.00019399,2]
[368330579,1751124548312,-1441.46264711,0.000194,2]
[368330592,1751124631993,-193.32,0.0001939,2]
[368330593,1751124632003,-193.32,0.0001939,2]
[368330594,1751124632012,-300.0,0.00019399,2]
[368330595,1751124632022,-1200.0,0.00019399,2]
[368330596,1751124632032,-240.0,0.00019399,2]
[368330597,1751124632043,-176524.62151559,0.000194,2]
[368330598,1751124632247,-498714.57938212,0.000194,2]
[368330599,1751124632258,-5003.0774793,0.00020796,2]
[368330600,1751124632268,-5000.0,0.00020796,2]
[368330601,1751124632277,-556.87923795,0.00021036,2]
[368330602,1751124632287,-420.0,0.00021136,2]
[368330603,1751124632296,-1680.0,0.00021239,2]
[368330604,1751124632306,-587.0,0.00023029,2]
[368330605,1751124632315,-762.0,0.00023252,2]
[368330607,1751124632325,-161.90333176,0.000239,2]
[368330609,1751124632335,-257.02852314,0.000239,2]
[368330611,1751124632346,-5000.00198557,0.00024,5]
[368330613,1751124632356,-3064.157608,0.00025,2]
[368330614,1751124632365,-257.02852314,0.00025794,2]
[368330615,1751124632375,-600.0,0.00027397,14]
[368330616,1751124632385,-606.0,0.00027397,16]
[368330617,1751124632395,-257.02852314,0.00027689,2]
[368330619,1751124632405,-257.02852314,0.00029583,2]
[368330621,1751124632415,-4587.37794689,0.0003,5]
[368330623,1751124632425,-214.0,0.0003,2]
[368330625,1751124632434,-1000.0,0.00030301,2]
[368330627,1751124632443,-239.40296155,0.000304,22]
[368330629,1751124632453,-239.40296134,0.000304,22]
[368330632,1751124632466,-239.40296134,0.000304,22]
[368330633,1751124632476,-239.40296134,0.000304,22]
[368330634,1751124632485,-239.40296134,0.000304,22]
[368330636,1751124632495,-239.40296134,0.000304,22]
[368330637,1751124632506,-239.40296134,0.000304,22]
[368330638,1751124632515,-239.40296134,0.000304,22]
[368330639,1751124632525,-239.40296134,0.000304,22]
[368330640,1751124632536,-239.40296134,0.000304,22]
[368330641,1751124632546,-161.90333175,0.00030941,15]
[368330642,1751124632556,-979.999999,0.0003121,2]
[368330643,1751124632565,-257.02852314,0.00031477,2]
[368330644,1751124632576,-166.15847903,0.00031521,2]
[368330645,1751124632586,-150.0,0.00031572,2]
[368330646,1751124632596,-353.0,0.00032496,7]
[368330647,1751124632605,-353.0,0.00032586,2]
[368330648,1751124632615,-208.0,0.00032995,2]
[368330649,1751124632626,-203.0,0.00032995,2]
[368330650,1751124632636,-203.0,0.00032995,2]
[368330651,1751124632646,-203.0,0.00032995,2]
[368330652,1751124632655,-379.79,0.00033335,2]
[368330653,1751124632665,-300.0,0.00033342,3]
[368330654,1751124632675,-493.23618416,0.00033344,5]
[368330655,1751124632685,-493.03,0.00033344,5]
[368330656,1751124632845,-493.03,0.00033344,5]
[368330657,1751124632855,-493.03,0.00033344,5]
[368330658,1751124632865,-493.03,0.00033344,5]
[368330659,1751124632875,-493.03,0.00033344,5]
[368330660,1751124632885,-493.03,0.00033344,5]
[368330661,1751124632895,-186.647,0.00033344,35]
[368330662,1751124632904,-168.0,0.00033344,2]
[368330663,1751124632914,-257.02852314,0.00033371,2]
[368330664,1751124632923,-22895.12,0.00033616,2]
[368330665,1751124632933,-953.59,0.00033616,2]
[368330666,1751124632943,-4000.0,0.00033674,4]
[368330667,1751124632953,-462.59,0.00033874,2]
[368330668,1751124632963,-165.02,0.00033882,2]
[368330669,1751124632972,-666.0,0.00033899,2]
[368330670,1751124632981,-200.0,0.00033917,2]
[368330671,1751124632991,-9171.75856761,0.00033937,2]
[368330672,1751124633001,-2038.31,0.00033937,2]
[368330673,1751124633011,-462.59,0.00033941,2]
[368330674,1751124633020,-462.59,0.00033941,2]
[368330675,1751124633030,-462.59,0.00033941,2]
[368330676,1751124633039,-273.46,0.00033963,2]
[368330677,1751124633049,-165.38,0.00033995,2]
[368330678,1751124633058,-1000.0,0.00034028,2]
[368330679,1751124633068,-6394.34,0.00034138,2]
[368330680,1751124633078,-353.0,0.000342,7]
[368330681,1751124633088,-150.0,0.00034243,2]
[368330682,1751124633098,-1108.707601,0.0003444,16]
[368330683,1751124633108,-1466.20155,0.0003454,2]
[368330684,1751124633117,-835.41973025,0.00034605,2]
[368330685,1751124633126,-167.13,0.00034641,2]
[368330686,1751124633136,-284.0,0.00034735,2]
[368330687,1751124633146,-168.0,0.00034743,7]
[368330688,1751124633156,-2003.95,0.000348,30]
[368330689,1751124633166,-213.98021928,0.000348,14]
[368330690,1751124633175,-2266.08426651,0.000348,2]
[368330691,1751124633185,-1662.0,0.000348,7]
[368330692,1751124633196,-209.6893,0.000348,2]
[368330693,1751124633205,-172.35800854,0.000348,8]
[368330694,1751124633214,-461.26,0.00034833,2]
[368330695,1751124633224,-305.99990393,0.00034873,2]
[368330696,1751124633233,-332.97472878,0.0003488,7]
[368330697,1751124633243,-206.98984069,0.0003488,7]
[368330698,1751124633252,-500.0,0.0003488,7]
[368330699,1751124633261,-500.0,0.0003488,7]
[368330700,1751124633271,-500.0,0.0003488,7]
[368330701,1751124633281,-500.0,0.0003488,7]
[368330702,1751124633291,-276.94103381,0.0003488,7]
[368330703,1751124633300,-500.0,0.0003488,7]
[368330704,1751124633310,-500.0,0.0003488,7]
[368330705,1751124633319,-500.0,0.0003488,7]
[368330706,1751124633329,-500.0,0.0003488,7]
[368330707,1751124633339,-500.0,0.0003488,7]
[368330708,1751124633349,-500.0,0.0003488,7]
[368330709,1751124633359,-500.0,0.0003488,7]
[368330710,1751124633368,-500.0,0.0003488,7]
[368330711,1751124633378,-500.0,0.0003488,7]
[368330712,1751124633388,-500.0,0.0003488,7]
[368330713,1751124633398,-500.0,0.0003488,7]
[368330714,1751124633408,-500.0,0.0003488,7]
[368330715,1751124633417,-500.0,0.0003488,7]
[368330716,1751124633426,-1660073.98704465,0.00034881,7]
[368330720,1751124638267,-239.40296134,0.000304,22]
[368330721,1751124638276,-239.40296134,0.000304,22]
[368330723,1751124638286,-239.40296134,0.000304,22]
[368330725,1751124638295,-239.40296134,0.000304,22]
[368330726,1751124638305,-239.40296134,0.000304,22]
[368330727,1751124638314,-239.40296134,0.00030728,23]
[368330728,1751124638325,-239.40296134,0.00031383,24]
[368330729,1751124638335,-239.40296134,0.00032038,26]
[368330730,1751124638345,-239.40296134,0.00032693,27]
[368330731,1751124638354,-239.40296134,0.00033348,28]
[368330732,1751124638363,-239.40296134,0.00034003,30]
[368330733,1751124638373,-239.40296134,0.00034659,31]
[368330734,1751124638382,-500.0,0.0003488,7]
[368330735,1751124638393,-500.0,0.0003488,7]
[368330736,1751124638403,-352.15204128,0.0003488,7]
[368330737,1751124638413,-500.0,0.0003488,7]
[368330738,1751124638424,-500.0,0.0003488,7]
[368330739,1751124638434,-500.0,0.0003488,7]
[368330740,1751124638443,-500.0,0.0003488,7]
[368330741,1751124638452,-500.0,0.0003488,7]
[368330742,1751124638466,-500.0,0.0003488,7]
[368330743,1751124638476,-500.0,0.0003488,7]
[368330744,1751124638485,-500.0,0.0003488,7]
[368330745,1751124638495,-500.0,0.0003488,7]
[368330746,1751124638505,-500.0,0.0003488,7]
[368330747,1751124638514,-500.0,0.0003488,7]
[368330748,1751124638524,-500.0,0.0003488,7]
[368330749,1751124638533,-500.0,0.0003488,7]
[368330750,1751124638545,-500.0,0.0003488,7]
[368330751,1751124638554,-500.0,0.0003488,7]
[368330752,1751124638563,-500.0,0.0003488,7]
[368330753,1751124638573,-500.0,0.0003488,7]
[368330754,1751124638582,-500.0,0.0003488,7]
[368330755,1751124638591,-500.0,0.0003488,7]
[368330756,1751124638601,-500.0,0.0003488,7]
[368330757,1751124638610,-155.02142965,0.0003488,7]
[368330758,1751124638620,-7847300.91797883,0.00034881,7]
[368330759,1751124640452,-500.0,0.00019399,2]
[368330760,1751124640467,-500.0,0.00019399,2]
[368330761,1751124640477,-500.0,0.00019399,2]
[368330762,1751124640487,-500.0,0.00019399,2]
[368330763,1751124640498,-500.0,0.00019399,2]
[368330764,1751124640507,-501.22824006,0.00019399,2]
[368330765,1751124640517,-500.0,0.00019399,2]
[368330766,1751124640527,-500.0,0.00019399,2]
[368330767,1751124640538,-500.0,0.00019399,2]
[368330768,1751124640548,-500.0,0.00019399,2]
[368330769,1751124640557,-446.56281749,0.00019399,2]
[368330770,1751124640567,-352.82315975,0.00019399,2]
[368330771,1751124640576,-46.11901603,0.00019399,2]
[368330772,1751124640587,-453.88098397,0.00019399,2]
[368330773,1751124640597,-500.0,0.00019399,2]
[368330774,1751124640607,-33.04502917,0.00019399,2]
[368330775,1751124640623,-466.95497083,0.00019399,2]
[368330776,1751124640632,-342.98284913,0.00019399,2]
[368330777,1751124640642,-416.38225137,0.00019399,2]
[368330778,1751124640652,-244.52480367,0.00019399,2]
[368330909,1751125069384,156.34,0.00013699,2]
[368330929,1751125767079,-173.69,0.00025822,2]
[368330930,1751125767101,-21.87132262,0.000279,5]
[368330937,1751125832057,-1762.8148675,0.000276,5]
[368330938,1751125832069,-1076.59239659,0.000276,5]
[368330939,1751125832129,-2649.59273591,0.000276,5]
[368330940,1751125832138,-1407.3279415,0.00028,2]
[368330941,1751125832150,-215.80669008,0.00028,2]
[368330942,1751125832160,-152.0,0.00029,120]
[368330943,1751125832169,-175.0,0.00029,120]
[368330944,1751125832178,-7249.12540742,0.00029,3]
[368330945,1751125832189,-202.0515942,0.000304,22]
[368330946,1751125832198,-202.05159414,0.000304,22]
[368330947,1751125832208,-202.05159414,0.000304,22]
[368330948,1751125832217,-202.05159414,0.000304,22]
[368330949,1751125832226,-202.05159414,0.000304,22]
[368330950,1751125832235,-202.05159414,0.000304,22]
[368330951,1751125832498,-202.05159414,0.000304,22]
[368330952,1751125832517,-205.0,0.00030533,2]
[368330953,1751125832528,-202.05159414,0.00030797,23]
[368330954,1751125832538,-1293.0,0.000312,2]
[368330955,1751125832547,-202.05159414,0.0003121,24]
[368330956,1751125832558,-250.0,0.000315,2]
[368330957,1751125832567,-202.05159414,0.00031624,25]
[368330958,1751125832577,-250.0,0.000319,2]
[368330960,1751125832587,-202.05159414,0.00032038,26]
[368330961,1751125832596,-204.52,0.00032043,80]
[368330962,1751125832606,-150.0,0.00032082,2]
[368330963,1751125832615,-2667.97,0.00032144,2]
[368330964,1751125832626,-189.89,0.0003218,2]
[368330965,1751125832636,-200.0,0.00032189,2]
[368330966,1751125832645,-300.0,0.00032211,2]
[368330967,1751125832655,-4849.91,0.00032236,2]
[368330968,1751125832664,-700.0,0.00032406,2]
[368330969,1751125832673,-179.07496691,0.00032452,26]
[368330970,1751125832692,-22.97662723,0.00032452,26]
[368330971,1751125832701,-493.55952839,0.00032498,2]
[368330972,1751125832712,-3093.14047161,0.00032498,2]
[368330973,1751125832721,-250.0,0.00032517,2]
[368330974,1751125832731,-233.116,0.00032555,32]
[368330975,1751125832740,-472.05,0.00032555,2]
[368330976,1751125832749,-23900.0,0.00032645,2]
[368330977,1751125832759,-742.0,0.00032745,7]
[368330978,1751125832768,-202.05159414,0.00032866,27]
[368330979,1751125832777,-800.74,0.00032979,120]
[368330980,1751125832787,-304.18474236,0.00033,2]
[368330981,1751125832796,-165.02,0.00033197,2]
[368330982,1751125832806,-205.0,0.00033212,7]
[368330983,1751125832815,-666.0,0.00033213,2]
[368330984,1751125832825,-1308.01,0.00033249,2]
[368330985,1751125832834,-202.05159414,0.00033279,28]
[368330986,1751125832844,-1000.0,0.00033283,2]
[368330987,1751125832853,-3029.28,0.00033462,2]
[368330988,1751125832862,-166.67,0.0003363,2]
[368330989,1751125832872,-202.05159414,0.00033693,29]
[368330990,1751125832881,-1300.0,0.000338,12]
[368330991,1751125832894,-155.16285594,0.000338,14]